fUST/lending_fUST_20240803
["ID","MTS","AMOUNT","RATE_DAILY","PERIOD"]
[333902945,1722617440974,-500.0,0.00013698,2]
[333902946,1722617440984,-500.0,0.00013698,2]
[333902947,1722617440994,-500.0,0.00013698,2]
[333902948,1722617441004,-500.0,0.00013698,2]
[333902949,1722617441015,-500.0,0.00013698,2]
[333902950,1722617441027,-500.0,0.00013698,2]
[333902951,1722617441036,-413.45485945,0.00013698,2]
[333902952,1722617441047,-206.42538066,0.00013698,2]
[333902953,1722617441057,-792.76,0.00013698,2]
[333902954,1722617441067,-500.0,0.00013698,2]
[333902955,1722617441077,-500.0,0.00013698,2]
[333902956,1722617441087,-500.0,0.00013698,2]
[333902957,1722617441097,-561.44881227,0.00013698,2]
[333902958,1722617441107,-500.0,0.00013698,2]
[333902959,1722617441117,-560.58001939,0.00013698,2]
[333902960,1722617441127,-500.0,0.00013698,2]
[333902961,1722617441137,-500.0,0.00013698,2]
[333902962,1722617441147,-500.0,0.00013698,2]
[333902963,1722617441156,-500.0,0.00013698,2]
[333902964,1722617441166,-500.0,0.00013698,2]
[333902965,1722617441175,-500.0,0.00013698,2]
[333902966,1722617441185,-500.0,0.00013698,2]
[333902967,1722617441194,-500.0,0.00013698,2]
[333902968,1722617441204,-500.0,0.00013698,2]
[333902969,1722617441214,-500.0,0.00013698,2]
[333902970,1722617441224,-500.00000002,0.00013698,2]
[333902971,1722617441233,-500.0,0.00013698,2]
[333902972,1722617441242,-661.27,0.00013698,2]
[333902973,1722617441251,-500.0,0.00013698,2]
[333902974,1722617441261,-210.57143812,0.00013698,2]
[333902975,1722617441271,-500.0,0.00013698,2]
[333902976,1722617441282,-509.09073126,0.00013698,2]
[333902977,1722617441292,-500.0,0.00013698,2]
[333902978,1722617441302,-500.0,0.00013698,2]
[333902979,1722617441313,-500.0,0.00013698,2]
[333902980,1722617441324,-500.0,0.00013698,2]
[333902981,1722617441336,-500.0,0.00013698,2]
[333902982,1722617441346,-500.0,0.00013698,2]
[333902983,1722617441356,-500.0,0.00013698,2]
[333902984,1722617441366,-515.95362371,0.00013698,2]
[333902985,1722617441376,-500.0,0.00013698,2]
[333902986,1722617441386,-500.0,0.00013698,2]
[333902987,1722617441396,-500.0,0.00013698,2]
[333902988,1722617441406,-500.0,0.00013698,2]
[333902989,1722617441417,-1214.85,0.00013698,2]
[333902990,1722617441428,-1369.36,0.00013698,2]
[333902991,1722617441438,-504.19979343,0.00013698,2]
[333902992,1722617441448,-500.0,0.00013698,2]
[333902993,1722617441458,-500.0,0.00013698,2]
[333902994,1722617441467,-500.0,0.00013698,2]
[333902995,1722617441477,-1614.12,0.00013698,2]
[333902996,1722617441487,-500.0,0.00013698,2]
[333902997,1722617441496,-268.55025728,0.00013698,2]
[333902998,1722617441505,-500.0,0.00013698,2]
[333902999,1722617441514,-500.0,0.00013698,2]
[333903000,1722617441526,-161.33,0.00013698,2]
[333903001,1722617441536,-730.62,0.00013698,2]
[333903002,1722617441545,-500.0,0.00013698,2]
[333903003,1722617441555,-500.0,0.00013698,2]
[333903004,1722617441564,-500.0,0.00013698,2]
[333903005,1722617441573,-500.0,0.00013698,2]
[333903006,1722617441583,-500.0,0.00013698,2]
[333903007,1722617441593,-500.0,0.00013698,2]
[333903008,1722617441604,-500.0,0.00013698,2]
[333903009,1722617441615,-500.0,0.00013698,2]
[333903010,1722617441625,-500.0,0.00013698,2]
[333903011,1722617441635,-500.0,0.00013698,2]
[333903012,1722617441644,-500.0,0.00013698,2]
[333903013,1722617441653,-500.0,0.00013698,2]
[333903014,1722617441663,-645.59,0.00013698,2]
[333903015,1722617441673,-534.1570803,0.00013698,2]
[333903016,1722617441683,-534.88894498,0.00013698,2]
[333903017,1722617441693,-500.0,0.00013698,2]
[333903018,1722617441702,-500.0,0.00013698,2]
[333903019,1722617441712,-545.70137269,0.00013698,2]
[333903020,1722617441721,-500.0,0.00013698,2]
[333903021,1722617441730,-500.0,0.00013698,2]
[333903022,1722617441740,-500.0,0.00013698,2]
[333903023,1722617441749,-500.0,0.00013698,2]
[333903024,1722617441759,-500.0,0.00013698,2]
[333903025,1722617441768,-500.0,0.00013698,2]
[333903026,1722617441779,-501.80301251,0.00013698,2]
[333903027,1722617441790,-500.0,0.00013698,2]
[333903028,1722617441799,-500.0,0.00013698,2]
[333903029,1722617441809,-500.0,0.00013698,2]
[333903030,1722617441820,-500.0,0.00013698,2]
[333903031,1722617441829,-500.0,0.00013698,2]
[333903032,1722617441838,-500.0,0.00013698,2]
[333903033,1722617441848,-500.0,0.00013698,2]
[333903034,1722617441858,-500.0,0.00013698,2]
[333903035,1722617441867,-500.0,0.00013698,2]
[333903036,1722617441878,-500.0,0.00013698,2]
[333903037,1722617441888,-500.0,0.00013698,2]
[333903038,1722617441897,-500.0,0.00013698,2]
[333903039,1722617441907,-500.0,0.00013698,2]
[333903040,1722617441917,-501.15327667,0.00013698,2]
[333903041,1722617441927,-500.0,0.00013698,2]
[333903042,1722617441936,-500.0,0.00013698,2]
[333903043,1722617441946,-500.0,0.00013698,2]
[333903044,1722617441955,-2479.52,0.00013698,2]
[333903045,1722617441965,-500.0,0.00013698,2]
[333903046,1722617441978,-203.35363528,0.00013698,2]
[333903114,1722617446568,-296.64636472,0.00013698,2]
[333903115,1722617446578,-500.0,0.00013698,2]
[333903116,1722617446587,-500.0,0.00013698,2]
[333903117,1722617446597,-500.0,0.00013698,2]
[333903118,1722617446607,-500.0,0.00013698,2]
[333903119,1722617446616,-500.0,0.00013698,2]
[333903120,1722617446625,-500.0,0.00013698,2]
[333903121,1722617446635,-500.0,0.00013698,2]
[333903122,1722617446644,-500.0,0.00013698,2]
[333903123,1722617446654,-500.0,0.00013698,2]
[333903124,1722617446663,-500.0,0.00013698,2]
[333903125,1722617446672,-500.0,0.00013698,2]
[333903127,1722617446682,-503.02090261,0.00013698,2]
[333903128,1722617446691,-219.26218121,0.00013698,2]
[333903129,1722617446700,-59.06683718,0.00013698,2]
[333903189,1722617580599,506.39628672,9.999e-05,2]
[333903192,1722617691159,154.88147785,9.999e-05,2]
[333903194,1722617939457,506.39628672,9.999e-05,2]
[333903195,1722617956444,506.39628672,9.999e-05,2]
[333903200,1722618009256,166.76167287,9.999e-05,2]
[333903201,1722618073532,506.39628672,9.999e-05,2]
[333903202,1722618092963,506.39628672,9.999e-05,2]
[333903203,1722618208978,506.39628672,9.999e-05,2]
[333903207,1722618256789,155.36988972,9.999e-05,2]
[333903208,1722618279576,340.96910741,9.999e-05,2]
[333903209,1722618297355,1772.94437021,9.999e-05,2]
[333903214,1722618307508,506.39628672,9.999e-05,2]
[333903215,1722618308478,403.4655861,9.999e-05,2]
[333903216,1722618319599,506.39628672,9.999e-05,2]
[333903217,1722618322483,195.85959936,9.999e-05,2]
[333903219,1722618373937,154.8391244,9.999e-05,2]
[333903220,1722618428114,285.86375745,9.999e-05,2]
[333903221,1722618490615,250.0,9.999e-05,2]
[333903222,1722618493471,154.97908599,9.999e-05,2]
[333903223,1722618539169,413.48920953,9.999e-05,2]
[333903224,1722618560122,-1476.76703458,0.00010671,2]
[333903279,1722618632738,-200.6136499,0.00010616,2]
[333903281,1722618632748,-1291.40818627,0.00010671,2]
[333903282,1722618632760,-850.38522801,0.00010671,2]
[333903287,1722618632802,-1081.46613896,0.00010671,2]
[333903289,1722618632813,-4337.21955596,0.00010671,2]
[333903291,1722618632825,-683.42958372,0.00010671,2]
[333903293,1722618632834,-164.508301,0.00011236,2]
[333903295,1722618632844,-300.0,0.00011293,2]
[333903296,1722618632853,-232.0,0.00011293,2]
[333903297,1722618632862,-164.508301,0.00011294,2]
[333903299,1722618632872,-164.508301,0.00011353,2]
[333903301,1722618632881,-164.508301,0.00011412,2]
[333903304,1722618632891,-164.508301,0.0001147,2]
[333903306,1722618632900,-164.508301,0.00011529,2]
[333903308,1722618632910,-164.508301,0.00011587,2]
[333903310,1722618632920,-164.508301,0.00011646,2]
[333903312,1722618632930,-164.508301,0.00011704,2]
[333903314,1722618632940,-164.508301,0.00011763,2]
[333903316,1722618632950,-164.508301,0.00011821,2]
[333903318,1722618632962,-466.94730168,0.0001202,2]
[333903320,1722618632974,-680.57379999,0.0001202,2]
[333903322,1722618632986,-632.68231449,0.0001202,2]
[333903606,1722618642040,-380.76756549,0.0001202,2]
[333903608,1722618642052,-1923.1627394,0.0001211,2]
[333903611,1722618642068,-555.34004053,0.0001211,2]
[333903613,1722618642081,-101807.51785407,0.0001211,2]
[333903615,1722618642091,-17302.92390575,0.00012119,5]
[333903617,1722618642102,-90477.73443114,0.0001212,2]
[333903619,1722618642112,-420.0,0.00012423,2]
[333903621,1722618642122,-2160.97098162,0.00012453,2]
[333903623,1722618642131,-2160.97098162,0.00012885,2]
[333903625,1722618642142,-174.066353,0.00012986,2]
[333903627,1722618642153,-2160.97098162,0.00013318,2]
[333903629,1722618642162,-1401.62,0.00013424,2]
[333903631,1722618642174,-1401.62,0.00013424,2]
[333903633,1722618642183,-4522.66802787,0.00013474,2]
[333903636,1722618642194,-150.0,0.00013575,2]
[333903637,1722618642203,-506.0,0.00013575,2]
[333903639,1722618642213,-275.83679228,0.00013616,2]
[333903641,1722618642225,-1410.0,0.00013642,2]
[333903643,1722618642235,-587.0,0.00013665,2]
[333903645,1722618642244,-156429.03095,0.00013678,2]
[333903647,1722618642253,-1401.62,0.00013687,2]
[333903649,1722618642263,-52143.0103168,0.00013688,2]
[333903651,1722618642273,-1401.62,0.00013697,2]
[333903653,1722618642283,-28405.23486956,0.00013698,5]
[333903655,1722618642294,-942.38430617,0.00013698,2]
[333903657,1722618642303,-500.0,0.00013698,2]
[333903659,1722618642314,-500.0,0.00013698,2]
[333903661,1722618642323,-500.0,0.00013698,2]
[333903663,1722618642333,-500.0,0.00013698,2]
[333903665,1722618642344,-500.0,0.00013698,2]
[333903667,1722618642358,-505.94128905,0.00013698,2]
[333903669,1722618642371,-500.0,0.00013698,2]
[333903671,1722618642381,-303.47362636,0.00013698,2]
[333903673,1722618642393,-500.0,0.00013698,2]
[333903676,1722618642403,-500.0,0.00013698,2]
[333903678,1722618642413,-509.09073126,0.00013698,2]
[333903679,1722618642422,-413.05138372,0.00013698,2]
[333903682,1722618642436,-500.0,0.00013698,2]
[333903684,1722618642446,-500.0,0.00013698,2]
[333903686,1722618642457,-597.72529334,0.00013698,2]
[333903688,1722618642467,-500.0,0.00013698,2]
[333903690,1722618642479,-413.45485945,0.00013698,2]
[333903692,1722618642490,-500.0,0.00013698,2]
[333903694,1722618642501,-500.00000002,0.00013698,2]
[333903696,1722618642511,-500.0,0.00013698,2]
[333903698,1722618642520,-500.0,0.00013698,2]
[333903700,1722618642531,-500.0,0.00013698,2]
[333903702,1722618642540,-561.44881227,0.00013698,2]
[333903704,1722618642550,-500.0,0.00013698,2]
[333903706,1722618642560,-500.0,0.00013698,2]
[333903708,1722618642570,-500.0,0.00013698,2]
[333903710,1722618642580,-500.0,0.00013698,2]
[333903712,1722618642591,-500.0,0.00013698,2]
[333903714,1722618642600,-500.0,0.00013698,2]
[333903716,1722618642610,-500.0,0.00013698,2]
[333903718,1722618642620,-500.0,0.00013698,2]
[333903720,1722618642630,-500.0,0.00013698,2]
[333903722,1722618642640,-500.0,0.00013698,2]
[333903724,1722618642649,-500.0,0.00013698,2]
[333903726,1722618642658,-500.0,0.00013698,2]
[333903728,1722618642668,-500.0,0.00013698,2]
[333903730,1722618642680,-810.58,0.00013698,2]
[333903732,1722618642689,-375.89863565,0.00013698,2]
[333903734,1722618642699,-500.0,0.00013698,2]
[333903736,1722618642709,-500.0,0.00013698,2]
[333903738,1722618642718,-500.0,0.00013698,2]
[333903740,1722618642730,-203.35363528,0.00013698,2]
[333903742,1722618642739,-500.0,0.00013698,2]
[333903744,1722618642748,-500.0,0.00013698,2]
[333903746,1722618642758,-500.0,0.00013698,2]
[333903747,1722618642767,-500.0,0.00013698,2]
[333903749,1722618642776,-500.0,0.00013698,2]
[333903751,1722618642785,-500.0,0.00013698,2]
[333903753,1722618642795,-500.0,0.00013698,2]
[333903755,1722618642804,-500.0,0.00013698,2]
[333903757,1722618642814,-500.0,0.00013698,2]
[333903759,1722618642825,-389.54919772,0.00013698,2]
[333903761,1722618642834,-500.0,0.00013698,2]
[333903763,1722618642844,-500.0,0.00013698,2]
[333903765,1722618642854,-268.55025728,0.00013698,2]
[333903767,1722618642863,-500.0,0.00013698,2]
[333903769,1722618642873,-504.19979343,0.00013698,2]
[333903771,1722618642882,-500.0,0.00013698,2]
[333903773,1722618642892,-500.0,0.00013698,2]
[333903775,1722618642902,-500.0,0.00013698,2]
[333903777,1722618642912,-500.0,0.00013698,2]
[333903779,1722618642922,-500.0,0.00013698,2]
[333903781,1722618642931,-500.0,0.00013698,2]
[333903783,1722618642941,-501.80301251,0.00013698,2]
[333903785,1722618642951,-500.0,0.00013698,2]
[333903787,1722618642960,-500.0,0.00013698,2]
[333903789,1722618642969,-545.70137269,0.00013698,2]
[333903792,1722618642980,-500.0,0.00013698,2]
[333903795,1722618642990,-500.0,0.00013698,2]
[333903799,1722618643000,-500.0,0.00013698,2]
[333903802,1722618643010,-500.0,0.00013698,2]
[333903804,1722618643019,-501.15327667,0.00013698,2]
[333903806,1722618643029,-500.0,0.00013698,2]
[333903807,1722618643038,-500.0,0.00013698,2]
[333903808,1722618643049,-534.1570803,0.00013698,2]
[333903809,1722618643058,-500.0,0.00013698,2]
[333903810,1722618643068,-206.42538066,0.00013698,2]
[333903811,1722618643077,-500.0,0.00013698,2]
[333903812,1722618643088,-500.0,0.00013698,2]
[333903813,1722618643097,-500.0,0.00013698,2]
[333903814,1722618643107,-500.0,0.00013698,2]
[333903815,1722618643116,-500.0,0.00013698,2]
[333903816,1722618643126,-792.76,0.00013698,2]
[333903817,1722618643136,-500.0,0.00013698,2]
[333903818,1722618643145,-500.0,0.00013698,2]
[333903819,1722618643156,-500.0,0.00013698,2]
[333903820,1722618643166,-500.0,0.00013698,2]
[333903821,1722618643178,-500.0,0.00013698,2]
[333903822,1722618643188,-500.0,0.00013698,2]
[333903823,1722618643197,-661.27,0.00013698,2]
[333903824,1722618643206,-500.0,0.00013698,2]
[333903825,1722618643215,-500.0,0.00013698,2]
[333903826,1722618643226,-500.0,0.00013698,2]
[333903827,1722618643235,-210.57143812,0.00013698,2]
[333903828,1722618643244,-500.0,0.00013698,2]
[333903829,1722618643254,-500.0,0.00013698,2]
[333903830,1722618643265,-500.0,0.00013698,2]
[333903831,1722618643274,-500.0,0.00013698,2]
[333903832,1722618643284,-500.0,0.00013698,2]
[333903833,1722618643293,-500.0,0.00013698,2]
[333903834,1722618643303,-500.0,0.00013698,2]
[333903835,1722618643313,-500.0,0.00013698,2]
[333903836,1722618643322,-464.90049769,0.00013698,2]
[333903837,1722618643332,-500.0,0.00013698,2]
[333903838,1722618643341,-508.66921285,0.00013698,2]
[333903839,1722618643354,-500.0,0.00013698,2]
[333903840,1722618643365,-500.0,0.00013698,2]
[333903841,1722618643374,-500.0,0.00013698,2]
[333903842,1722618643384,-500.0,0.00013698,2]
[333903843,1722618643394,-500.0,0.00013698,2]
[333903844,1722618643403,-500.0,0.00013698,2]
[333903845,1722618643412,-500.0,0.00013698,2]
[333903846,1722618643422,-515.95362371,0.00013698,2]
[333903847,1722618643432,-500.0,0.00013698,2]
[333903848,1722618643442,-3430.17,0.00013698,2]
[333903850,1722618643452,-500.0,0.00013698,2]
[333903851,1722618643463,-500.0,0.00013698,2]
[333903852,1722618643472,-500.0,0.00013698,2]
[333903853,1722618643484,-500.0,0.00013698,2]
[333903855,1722618643494,-500.0,0.00013698,2]
[333903857,1722618643504,-1369.36,0.00013698,2]
[333903859,1722618643513,-506.37693794,0.00013698,2]
[333903861,1722618643523,-430.85125548,0.00013698,2]
[333903863,1722618643533,-1614.12,0.00013698,2]
[333903865,1722618643543,-2068.34,0.00013698,2]
[333903867,1722618643554,-500.0,0.00013698,2]
[333903869,1722618643564,-500.0,0.00013698,2]
[333903871,1722618643574,-500.0,0.00013698,2]
[333903873,1722618643585,-500.0,0.00013698,2]
[333903875,1722618643595,-500.0,0.00013698,2]
[333903877,1722618643606,-500.0,0.00013698,2]
[333903879,1722618643615,-730.62,0.00013698,2]
[333903881,1722618643625,-500.0,0.00013698,2]
[333903883,1722618643635,-161.33,0.00013698,2]
[333903886,1722618643646,-500.0,0.00013698,2]
[333903888,1722618643656,-1214.85,0.00013698,2]
[333903890,1722618643666,-500.0,0.00013698,2]
[333903892,1722618643675,-232.79343328,0.00013698,2]
[333903894,1722618643684,-500.0,0.00013698,2]
[333903896,1722618643693,-572.84595339,0.00013698,2]
[333903898,1722618643702,-500.0,0.00013698,2]
[333903901,1722618643712,-213.10490754,0.00013698,2]
[333903905,1722618643723,-500.0,0.00013698,2]
[333903908,1722618643734,-500.0,0.00013698,2]
[333903911,1722618643744,-500.0,0.00013698,2]
[333903914,1722618643755,-500.0,0.00013698,2]
[333903917,1722618643766,-500.0,0.00013698,2]
[333903920,1722618643775,-500.0,0.00013698,2]
[333903923,1722618643785,-500.0,0.00013698,2]
[333903926,1722618643795,-500.0,0.00013698,2]
[333903929,1722618643805,-500.0,0.00013698,2]
[333903931,1722618643817,-500.0,0.00013698,2]
[333903933,1722618643826,-500.0,0.00013698,2]
[333903935,1722618643836,-500.0,0.00013698,2]
[333903937,1722618643845,-645.59,0.00013698,2]
[333903939,1722618643855,-151.0,0.00013698,2]
[333903941,1722618643865,-500.0,0.00013698,2]
[333903953,1722618643971,-500.0,0.00013698,2]
[333903955,1722618643982,-500.0,0.00013698,2]
[333903957,1722618643992,-263.54593914,0.00013698,2]
[333903959,1722618644002,-500.0,0.00013698,2]
[333903961,1722618644011,-500.0,0.00013698,2]
[333903963,1722618644021,-534.88894498,0.00013698,2]
[333903965,1722618644030,-500.0,0.00013698,2]
[333903967,1722618644039,-500.0,0.00013698,2]
[333903969,1722618644049,-500.0,0.00013698,2]
[333903971,1722618644058,-500.0,0.00013698,2]
[333903973,1722618644069,-500.0,0.00013698,2]
[333903975,1722618644078,-500.0,0.00013698,2]
[333903977,1722618644087,-500.0,0.00013698,2]
[333903979,1722618644097,-1857.82,0.00013698,2]
[333903981,1722618644107,-525.48011359,0.00013698,2]
[333903983,1722618644116,-500.0,0.00013698,2]
[333903985,1722618644127,-500.0,0.00013698,2]
[333903987,1722618644136,-500.0,0.00013698,2]
[333903989,1722618644146,-500.0,0.00013698,2]
[333903991,1722618644156,-151.0,0.00013698,2]
[333903993,1722618644166,-500.0,0.00013698,2]
[333903995,1722618644176,-500.0,0.00013698,2]
[333903997,1722618644185,-732.49,0.00013698,2]
[333903999,1722618644194,-500.0,0.00013698,2]
[333904001,1722618644204,-500.0,0.00013698,2]
[333904003,1722618644214,-151.0,0.00013698,2]
[333904005,1722618644225,-2479.52,0.00013698,2]
[333904007,1722618644236,-500.0,0.00013698,2]
[333904010,1722618644250,-422.94463536,0.00013698,2]
[333904012,1722618644259,-500.0,0.00013698,2]
[333904014,1722618644269,-500.0,0.00013698,2]
[333904016,1722618644279,-500.0,0.00013698,2]
[333904018,1722618644288,-500.0,0.00013698,2]
[333904020,1722618644299,-560.58001939,0.00013698,2]
[333904022,1722618644308,-500.0,0.00013698,2]
[333904024,1722618644318,-500.0,0.00013698,2]
[333904026,1722618644328,-500.0,0.00013698,2]
[333904028,1722618644339,-500.0,0.00013698,2]
[333904030,1722618644351,-500.0,0.00013698,2]
[333904032,1722618644363,-500.0,0.00013698,2]
[333904034,1722618644373,-500.0,0.00013698,2]
[333904036,1722618644383,-150.112233,0.000137,2]
[333904038,1722618644393,-2160.97098162,0.0001375,2]
[333904040,1722618644404,-2000.0,0.00013751,2]
[333904042,1722618644413,-151.0,0.00013841,2]
[333904044,1722618644423,-151.0,0.00013841,2]
[333904046,1722618644433,-151.0,0.00013841,2]
[333904048,1722618644443,-151.0,0.00013841,2]
[333904050,1722618644453,-151.0,0.00013841,2]
[333904052,1722618644462,-151.0,0.00013841,2]
[333904054,1722618644472,-151.0,0.00013841,2]
[333904056,1722618644483,-151.0,0.00013841,2]
[333904058,1722618644494,-151.0,0.00013841,2]
[333904060,1722618644503,-151.0,0.00013841,2]
[333904062,1722618644513,-151.0,0.00013841,2]
[333904064,1722618644523,-151.0,0.00013841,2]
[333904066,1722618644533,-151.0,0.00013841,2]
[333904068,1722618644543,-151.0,0.00013841,2]
[333904070,1722618644553,-1401.62,0.0001385,2]
[333904072,1722618644562,-151.0,0.00013851,2]
[333904074,1722618644572,-151.0,0.00013851,2]
[333904076,1722618644582,-151.0,0.00013851,2]
[333904078,1722618644592,-151.0,0.00013851,2]
[333904080,1722618644602,-151.0,0.00013851,2]
[333904082,1722618644613,-151.0,0.00013851,2]
[333904084,1722618644623,-151.0,0.00013851,2]
[333904086,1722618644634,-151.0,0.00013851,2]
[333904088,1722618644644,-151.0,0.00013851,2]
[333904090,1722618644655,-151.0,0.00013851,2]
[333904092,1722618644666,-151.0,0.00013851,2]
[333904094,1722618644675,-151.0,0.00013851,2]
[333904096,1722618644685,-152.741646,0.00013861,2]
[333904098,1722618644696,-151.0,0.00013861,2]
[333904100,1722618644707,-151.0,0.00013861,2]
[333904102,1722618644717,-151.0,0.00013861,2]
[333904104,1722618644736,-151.0,0.00013861,2]
[333904106,1722618644745,-235.929563,0.00013861,2]
[333904108,1722618644755,-151.0,0.00013861,2]
[333904110,1722618644767,-151.0,0.00013861,2]
[333904112,1722618644776,-231.38037,0.00013861,2]
[333904114,1722618644785,-151.0,0.00013861,2]
[333904116,1722618644794,-151.0,0.00013861,2]
[333904118,1722618644803,-151.0,0.00013861,2]
[333904120,1722618644812,-151.0,0.00013861,2]
[333904122,1722618644821,-151.0,0.00013861,2]
[333904124,1722618644831,-151.0,0.00013861,2]
[333904126,1722618644840,-88888.0,0.00013861,2]
[333904128,1722618644850,-1401.62,0.0001387,2]
[333904130,1722618644859,-620.03162384,0.00013888,2]
[333904132,1722618644869,-151.0,0.00013961,2]
[333904134,1722618644880,-1401.62,0.00013961,2]
[333904136,1722618644890,-151.0,0.00013962,2]
[333904138,1722618644900,-151.0,0.00013962,2]
[333904140,1722618644910,-151.0,0.0001397,2]
[333904142,1722618644919,-151.0,0.0001397,2]
[333904144,1722618644929,-151.0,0.0001397,2]
[333904146,1722618644939,-235.929563,0.0001397,2]
[333904148,1722618644949,-151.0,0.00013971,2]
[333904149,1722618644958,-151.0,0.00013971,2]
[333904151,1722618644968,-151.0,0.00013971,2]
[333904153,1722618644985,-151.0,0.00013971,2]
[333904156,1722618644995,-1401.62,0.00013971,2]
[333904158,1722618645005,-500.0,0.00013972,2]
[333904160,1722618645015,-500.0,0.00013972,2]
[333904162,1722618645025,-500.0,0.00013972,2]
[333904163,1722618645034,-151.0,0.00013972,2]
[333904165,1722618645044,-500.0,0.00013972,2]
[333904167,1722618645053,-500.0,0.00013972,2]
[333904170,1722618645063,-810.58,0.00013972,2]
[333904171,1722618645072,-151.0,0.00013972,2]
[333904173,1722618645082,-500.0,0.00013972,2]
[333904175,1722618645091,-500.0,0.00013972,2]
[333904177,1722618645100,-500.0,0.00013972,2]
[333904179,1722618645110,-206.17170637,0.00013972,2]
[333904181,1722618645120,-500.0,0.00013972,2]
[333904183,1722618645129,-241.70589182,0.00013972,2]
[333904185,1722618645139,-500.0,0.00013972,2]
[333904187,1722618645148,-500.0,0.00013972,2]
[333904189,1722618645157,-792.76,0.00013972,2]
[333904191,1722618645167,-500.0,0.00013972,2]
[333904193,1722618645176,-500.0,0.00013972,2]
[333904196,1722618645186,-661.27,0.00013972,2]
[333904197,1722618645196,-500.0,0.00013972,2]
[333904200,1722618645205,-500.0,0.00013972,2]
[333904202,1722618645215,-3430.17,0.00013972,2]
[333904203,1722618645230,-500.0,0.00013972,2]
[333904205,1722618645240,-500.0,0.00013972,2]
[333904208,1722618645249,-500.0,0.00013972,2]
[333904209,1722618645259,-500.0,0.00013972,2]
[333904211,1722618645268,-1369.36,0.00013972,2]
[333904214,1722618645277,-1614.12,0.00013972,2]
[333904216,1722618645287,-2068.34,0.00013972,2]
[333904217,1722618645297,-545.71772537,0.00013972,2]
[333904219,1722618645306,-500.0,0.00013972,2]
[333904221,1722618645315,-500.0,0.00013972,2]
[333904223,1722618645324,-500.0,0.00013972,2]
[333904225,1722618645334,-500.0,0.00013972,2]
[333904227,1722618645344,-500.0,0.00013972,2]
[333904229,1722618645357,-730.62,0.00013972,2]
[333904231,1722618645366,-500.0,0.00013972,2]
[333904233,1722618645376,-500.0,0.00013972,2]
[333904235,1722618645385,-1214.85,0.00013972,2]
[333904237,1722618645398,-500.0,0.00013972,2]
[333904240,1722618645408,-500.0,0.00013972,2]
[333904242,1722618645418,-645.59,0.00013972,2]
[333904244,1722618645431,-500.0,0.00013972,2]
[333904246,1722618645443,-240.21381343,0.00013972,2]
[333904248,1722618645453,-500.0,0.00013972,2]
[333904250,1722618645463,-500.0,0.00013972,2]
[333904252,1722618645473,-500.0,0.00013972,2]
[333904254,1722618645484,-1857.82,0.00013972,2]
[333904256,1722618645494,-500.0,0.00013972,2]
[333904258,1722618645503,-500.0,0.00013972,2]
[333904260,1722618645513,-500.0,0.00013972,2]
[333904262,1722618645523,-500.0,0.00013972,2]
[333904264,1722618645532,-500.0,0.00013972,2]
[333904266,1722618645542,-500.0,0.00013972,2]
[333904267,1722618645551,-732.49,0.00013972,2]